bitfinex-derivatives/quotes_BNBF0:USTF0_20250529
["timestamp","ask_amount","ask_price","bid_price","bid_amount"]
[1748520031138,1.0199456,685.95,685.38,0.56735519]
[1748520031335,1.02193507,685.94,685.37,0.564]
[1748520031535,1.0199456,685.95,685.37,0.564]
[1748520031733,1.0199456,685.95,685.38,0.56727198]
[1748520031937,1.0199456,685.95,685.37,0.564]
[1748520032135,1.02195986,685.94,685.38,0.56727159]
[1748520032334,1.02196219,685.93,685.37,0.564]
[1748520032539,1.0199456,685.95,685.37,0.564]
[1748520033136,1.02196248,685.94,685.37,0.564]
[1748520033341,1.0199456,685.95,685.37,0.564]
[1748520033542,1.0199456,685.95,685.38,0.56726786]
[1748520033841,1.0199456,685.95,685.39,0.56727005]
[1748520034041,1.0199456,685.95,685.37,0.564]
[1748520034837,1.0199456,685.95,685.38,0.56726241]
[1748520035038,1.0199456,685.95,685.37,0.564]
[1748520035443,1.02193462,685.94,685.38,0.56726852]
[1748520035642,1.0199456,685.95,685.39,0.56726703]
[1748520035843,1.0199456,685.95,685.37,0.564]
[1748520036235,1.0199456,685.95,685.38,0.56726538]
[1748520036437,1.0199456,685.95,685.37,0.564]
[1748520036837,1.02193652,685.94,685.37,0.564]
[1748520037141,1.0199456,685.95,685.37,0.564]
[1748520037541,1.02193774,685.94,685.38,0.56727362]
[1748520037737,1.0199456,685.95,685.37,0.564]
[1748520038142,1.0199456,685.95,685.38,0.56727804]
[1748520038342,1.0219377,685.94,685.39,0.56728563]
[1748520038542,1.0199456,685.95,685.4,0.56727815]
[1748520038743,1.0199456,685.95,685.38,0.56727804]
[1748520038942,1.02151533,685.94,685.39,0.56704302]
[1748520039143,1.02151533,685.93,685.4,0.56704302]
[1748520039343,1.02148373,685.92,685.41,0.5670922]
[1748520039644,1.02148373,685.91,685.42,0.5670922]
[1748520039944,1.02148373,685.91,685.38,0.56727804]
[1748520039945,1.02148424,685.9,685.43,0.56709079]
[1748520040146,1.0214812,685.89,685.44,0.56708399]
[1748520040339,1.0199456,685.95,685.38,0.56727804]
[1748520040540,1.02148113,685.94,685.39,0.56708449]
[1748520040739,1.02148113,685.93,685.4,0.56708449]
[1748520041042,1.0199456,685.95,685.41,0.56708449]
[1748520041240,1.02125808,685.94,685.42,0.56708449]
[1748520041442,1.02125808,685.93,685.43,0.56696185]
[1748520041645,1.02114304,685.92,685.44,0.56689786]
[1748520041843,1.02114304,685.91,685.45,0.56689786]
[1748520042149,1.0199456,685.95,685.46,0.56689786]
[1748520042150,1.02114304,685.9,685.46,0.56689786]
[1748520042345,1.02114304,685.89,685.47,0.56689786]
[1748520042546,1.02114304,685.88,685.48,0.56678562]
[1748520042853,1.02110558,685.87,685.38,0.56727804]
[1748520043054,1.02110401,685.86,685.39,0.56678355]
[1748520043246,1.02110216,685.85,685.4,0.56677577]
[1748520043448,1.02110216,685.84,685.41,0.56657263]
[1748520043651,1.02110216,685.84,685.38,0.56727804]
[1748520043652,1.02110216,685.83,685.42,0.56650866]
[1748520043850,1.02063604,685.82,685.38,0.56727804]
[1748520044052,1.02063633,685.81,685.39,0.56641354]
[1748520044248,1.02063633,685.8,685.4,0.56641267]
[1748520044448,1.02063633,685.79,685.41,0.56641267]
[1748520044750,1.02012074,685.94,685.42,0.56609087]
[1748520044954,1.0199456,685.95,685.43,0.56609087]
[1748520044955,1.02012062,685.93,685.43,0.56609087]
[1748520045153,1.02011958,685.92,685.44,0.56608897]
[1748520045455,1.0199456,685.95,685.38,0.56727804]
[1748520046149,1.0201188,685.94,685.39,0.56608703]
[1748520046345,1.02011908,685.93,685.38,0.56727804]
[1748520046547,1.0199456,685.95,685.38,0.56727804]
[1748520046747,1.0199456,685.95,685.39,0.56609306]
[1748520046952,1.0199456,685.95,685.38,0.56727804]
[1748520047153,1.0199456,685.95,685.39,0.56607503]
[1748520047356,1.0199456,685.95,685.4,0.56600567]
[1748520047550,1.0199456,685.95,685.38,0.56727804]
[1748520048755,1.0200523,685.94,685.38,0.56727804]
[1748520049057,1.0199456,685.95,685.38,0.56727804]
[1748520049058,1.02005893,685.93,685.38,0.56727804]
[1748520049251,1.0199456,685.95,685.39,0.56598232]
[1748520049455,1.0199456,685.95,685.38,0.56727804]
[1748520049758,1.02005833,685.94,685.38,0.56727804]
[1748520049958,1.0199456,685.95,685.38,0.56727804]
[1748520050349,1.01995909,685.94,685.38,0.56727804]
[1748520050549,1.0199456,685.95,685.38,0.56727804]
[1748520051057,1.0199456,685.95,685.39,0.56580895]
[1748520051355,1.0199456,685.95,685.4,0.56581132]
[1748520051555,1.0199456,685.95,685.38,0.56727804]
[1748520052656,1.01994768,685.94,685.39,0.56573931]
[1748520052957,1.0199456,685.95,685.38,0.56727804]
[1748520053257,1.0199456,685.95,685.39,0.56572866]
[1748520053458,1.0199456,685.95,685.38,0.56727804]
[1748520054754,1.01994941,685.94,685.39,0.56572591]
[1748520054954,1.0199456,685.95,685.38,0.56727804]
[1748520055654,1.0199456,685.95,685.39,0.56508796]
[1748520055860,1.0199456,685.95,685.38,0.56727804]
[1748520058862,1.0199456,685.95,685.39,0.56498631]
[1748520059063,1.0199456,685.95,685.4,0.56498459]
[1748520059262,1.0199456,685.95,685.38,0.56727804]
[1748520059664,1.0199456,685.95,685.39,0.56495878]
[1748520059865,1.0199456,685.95,685.38,0.56727804]
[1748520061268,1.0199456,685.95,685.39,0.56495692]
[1748520061460,1.0199456,685.95,685.38,0.56727804]
[1748520061664,1.0199456,685.95,685.39,0.5649542]
[1748520061862,1.0199456,685.95,685.38,0.56727804]
[1748520065366,1.0199456,685.95,685.39,0.56495311]
[1748520065568,1.0199456,685.95,685.38,0.56727804]
[1748520065963,1.0199456,685.95,685.39,0.56495668]
[1748520066171,1.0199456,685.95,685.4,0.56496081]
[1748520066365,1.0199456,685.95,685.38,0.56727804]
[1748520066564,1.0199456,685.95,685.39,0.56495446]
[1748520066768,1.0199456,685.95,685.38,0.56727804]
[1748520067464,1.0199456,685.95,685.39,0.56503952]
[1748520067664,1.0199456,685.95,685.38,0.56727804]
[1748520068465,1.0199456,685.95,685.39,0.56508982]
[1748520068665,1.0199456,685.95,685.38,0.56727804]
[1748520069166,1.0199456,685.95,685.39,0.56504211]
[1748520069369,1.0199456,685.95,685.38,0.56727804]
[1748520069565,1.0199456,685.95,685.39,0.56488966]
[1748520069770,1.0199456,685.95,685.4,0.56488969]
[1748520069966,1.0199456,685.95,685.38,0.56727804]
[1748520072766,1.0199456,685.95,685.39,0.56493653]
[1748520072967,1.0199456,685.95,685.38,0.56727804]
[1748520073373,1.0199456,685.95,685.39,0.56497922]
[1748520073570,1.0199456,685.95,685.4,0.56498203]
[1748520073867,1.0199456,685.95,685.38,0.56727804]
[1748520074670,1.02028087,685.94,685.38,0.56727804]
[1748520074872,1.0199456,685.95,685.38,0.56727804]
[1748520075075,1.02013067,685.93,685.39,0.56524343]
[1748520075371,1.0199456,685.95,685.38,0.56727804]
[1748520075676,1.02035703,685.94,685.39,0.56537129]
[1748520075870,1.0199456,685.95,685.38,0.56727804]
[1748520077076,1.0199456,685.95,685.39,0.56527473]
[1748520077272,1.0199456,685.95,685.38,0.56727804]
[1748520078077,1.02010475,685.94,685.38,0.56727804]
[1748520078276,1.0199456,685.95,685.38,0.56727804]
[1748520078774,1.02010992,685.94,685.38,0.56727804]
[1748520078979,1.0199456,685.95,685.38,0.56727804]
[1748520080281,1.02007533,685.94,685.38,0.56727804]
[1748520080482,1.02020142,685.93,685.38,0.56727804]
[1748520080676,1.0199456,685.95,685.38,0.56727804]
[1748520080882,1.02075959,685.94,685.38,0.56727804]
[1748520081078,1.0199456,685.95,685.38,0.56727804]
[1748520081276,1.02076562,685.94,685.39,0.56512166]
[1748520081481,1.0211839,685.93,685.38,0.56727804]
[1748520081682,1.0199456,685.95,685.38,0.56727804]
[1748520082179,1.0199456,685.95,685.39,0.56535851]
[1748520082383,1.0199456,685.95,685.38,0.56727804]
[1748520082585,1.02118718,685.94,685.38,0.56727804]
[1748520082781,1.0199456,685.95,685.38,0.56727804]
[1748520082983,1.0211871,685.94,685.38,0.56727804]
[1748520083180,1.0199456,685.95,685.38,0.56727804]
[1748520083780,1.02140495,685.94,685.38,0.56727804]
[1748520084080,1.0199456,685.95,685.38,0.56727804]
[1748520084679,1.0199456,685.95,685.39,0.56578179]
[1748520084882,1.0199456,685.95,685.38,0.56727804]
[1748520085886,1.02144134,685.94,685.38,0.56727804]
[1748520086086,1.0199456,685.95,685.38,0.56727804]
[1748520086686,1.0199456,685.95,685.39,0.5658257]
[1748520086886,1.0199456,685.95,685.38,0.56727804]
[1748520087387,1.0199456,685.95,685.39,0.56582918]
[1748520087585,1.0199456,685.95,685.38,0.56727804]
[1748520088384,1.02140019,685.94,685.38,0.56727804]
[1748520088588,1.0199456,685.95,685.38,0.56727804]
[1748520088782,1.0199456,685.95,685.39,0.56582566]
[1748520088987,1.0199456,685.95,685.4,0.56582755]
[1748520089284,1.0199456,685.95,685.41,0.56582191]
[1748520089487,1.0199456,685.95,685.38,0.56727804]
[1748520089988,1.0199456,685.95,685.39,0.56582467]
[1748520090187,1.0199456,685.95,685.38,0.56727804]
[1748520090587,1.02143127,685.94,685.38,0.56727804]
[1748520090788,1.02143218,685.93,685.38,0.56727804]
[1748520091089,1.02089159,685.92,685.39,0.56582657]
[1748520091289,1.02089159,685.91,685.38,0.56727804]
[1748520091485,1.0199456,685.95,685.39,0.56552673]
[1748520091691,1.02089159,685.94,685.4,0.56552674]
[1748520091890,1.0199456,685.95,685.38,0.56727804]
[1748520091891,1.02089159,685.93,685.38,0.56727804]
[1748520092189,1.0199456,685.95,685.39,0.56552819]
[1748520092391,1.0199456,685.95,685.38,0.56727804]
[1748520092392,1.0199456,685.95,685.4,0.56552819]
[1748520092686,1.0199456,685.95,685.38,0.56727804]
[1748520093586,1.02088994,685.94,685.39,0.56552398]
[1748520093786,1.0199456,685.95,685.38,0.56727804]
[1748520093787,1.0199456,685.95,685.4,0.56552373]
[1748520093986,1.0199456,685.95,685.38,0.56727804]
[1748520094392,1.0199456,685.95,685.39,0.56552176]
[1748520094689,1.0199456,685.95,685.38,0.56727804]
[1748520094885,1.02085929,685.94,685.38,0.56727804]
[1748520095084,1.02085929,685.93,685.39,0.56552228]
[1748520095284,1.0199456,685.95,685.38,0.56727804]
[1748520095785,1.02086089,685.94,685.38,0.56727804]
[1748520095986,1.0199456,685.95,685.39,0.56562631]
[1748520096185,1.0199456,685.95,685.38,0.56727804]
[1748520096387,1.02089159,685.94,685.39,0.56562357]
[1748520096589,1.0199456,685.95,685.38,0.56727804]
[1748520096892,1.0199456,685.95,685.39,0.5656443]
[1748520097091,1.02089217,685.94,685.38,0.56727804]
[1748520097293,1.0199456,685.95,685.39,0.56564267]
[1748520097489,1.0199456,685.95,685.38,0.56727804]
[1748520097688,1.0199456,685.95,685.39,0.56564547]
[1748520097891,1.0199456,685.95,685.38,0.56727804]
[1748520098491,1.02089294,685.94,685.38,0.56727804]
[1748520098789,1.0199456,685.95,685.38,0.56727804]
[1748520099191,1.0199456,685.95,685.39,0.56546523]
[1748520099392,1.0199456,685.95,685.4,0.56546916]
[1748520099588,1.02049023,685.94,685.38,0.56727804]
[1748520099789,1.0199456,685.95,685.38,0.56727804]
[1748520099993,1.02049023,685.94,685.38,0.56727804]
[1748520100295,1.0199456,685.95,685.38,0.56727804]
[1748520100690,1.02000701,685.94,685.38,0.56727804]
[1748520100994,1.0199456,685.95,685.38,0.56727804]
[1748520101292,1.0199456,685.95,685.39,0.56521622]
[1748520102992,1.01938653,685.94,685.39,0.564845]
[1748520103191,1.0199456,685.95,685.4,0.56483897]
[1748520103393,1.0199456,685.95,685.38,0.56727804]
[1748520105694,1.01488008,685.94,685.38,0.56727804]
[1748520105893,1.0199456,685.95,685.38,0.56727804]
[1748520106200,1.01487887,685.94,685.38,0.56727804]
[1748520106399,1.01487887,685.93,685.38,0.56727804]
[1748520106694,1.0199456,685.95,685.39,0.533]
[1748520106894,1.01487887,685.94,685.39,0.533]
[1748520107301,1.0199456,685.95,685.39,0.533]
[1748520107601,1.01487894,685.94,685.39,0.533]
[1748520107801,1.01487894,685.93,685.39,0.533]
[1748520107998,1.01487894,685.92,685.39,0.533]
[1748520108193,1.0199456,685.95,685.39,0.533]
[1748520108194,1.01487773,685.91,685.39,0.533]
[1748520108399,1.01487773,685.9,685.39,0.533]
[1748520108595,1.01487773,685.89,685.39,0.533]
[1748520108798,1.01487773,685.88,685.39,0.533]
[1748520109100,1.01487773,685.87,685.39,0.533]
[1748520109302,1.01487773,685.86,685.39,0.533]
[1748520109500,1.01487773,685.85,685.39,0.533]
[1748520109796,1.01684643,685.84,685.39,0.533]
[1748520110096,1.0199456,685.95,685.39,0.533]
[1748520110899,1.01684767,685.94,685.39,0.533]
[1748520111203,1.0168471,685.93,685.4,0.5640692]
[1748520111399,1.0168471,685.92,685.39,0.533]
[1748520111603,1.0168471,685.91,685.4,0.56407684]
[1748520111803,1.0168471,685.9,685.39,0.533]
[1748520111999,1.01803287,685.89,685.4,0.56407882]
[1748520112204,1.0199456,685.95,685.39,0.533]
[1748520112400,1.0199456,685.95,685.4,0.56408207]
[1748520112603,1.0199456,685.95,685.39,0.533]
[1748520113006,1.01802804,685.94,685.39,0.533]
[1748520113201,1.01802863,685.93,685.39,0.533]
[1748520113403,1.01802863,685.92,685.39,0.533]
[1748520113604,1.0199456,685.95,685.4,0.56407936]
[1748520113802,1.01803063,685.94,685.39,0.533]
[1748520114008,1.0199456,685.95,685.39,0.533]
[1748520114703,1.0199456,685.95,685.4,0.56407373]
[1748520114909,1.0199456,685.95,685.41,0.56407485]
[1748520115208,1.0199456,685.95,685.39,0.533]
[1748520115706,1.02567021,685.94,685.39,0.533]
[1748520115906,1.02567021,685.93,685.39,0.533]
[1748520116208,1.0199456,685.95,685.39,0.533]
[1748520116402,1.02566962,685.94,685.39,0.533]
[1748520116603,1.0199456,685.95,685.39,0.533]
[1748520116802,1.0199456,685.95,685.4,0.56833031]
[1748520116803,1.02567155,685.94,685.4,0.56833031]
[1748520117003,1.0199456,685.95,685.41,0.56833179]
[1748520117203,1.0199456,685.95,685.39,0.533]
[1748520117602,1.0199456,685.95,685.4,0.5683303]
[1748520117806,1.0199456,685.95,685.38,0.56727804]
[1748520118609,1.0199456,685.95,685.39,0.56829871]
[1748520118804,1.02561197,685.94,685.4,0.56828685]
[1748520119105,1.0199456,685.95,685.38,0.56727804]
[1748520120113,1.0199456,685.95,685.39,0.56833024]
[1748520120315,1.0199456,685.95,685.39,0.536]
[1748520120807,1.0199456,685.95,685.4,0.56833528]
[1748520121011,1.0199456,685.95,685.39,0.536]
[1748520121413,1.0199456,685.95,685.4,0.56847038]
[1748520121615,1.0199456,685.95,685.41,0.56855058]
[1748520121814,1.0199456,685.95,685.39,0.536]
[1748520122009,1.0199456,685.95,685.4,0.5685747]
[1748520122215,1.02562523,685.94,685.39,0.536]
[1748520122514,1.0199456,685.95,685.39,0.536]
[1748520122515,1.02562523,685.93,685.4,0.56858005]
[1748520122715,1.0199456,685.95,685.41,0.56857979]
[1748520122914,1.0199456,685.95,685.39,0.536]
[1748520123112,1.02562571,685.94,685.4,0.5686007]
[1748520123311,1.02562701,685.93,685.41,0.56860121]
[1748520123514,1.0199456,685.95,685.39,0.536]
[1748520124213,1.02562631,685.94,685.39,0.536]
[1748520124414,1.0199456,685.95,685.39,0.536]
[1748520124612,1.02562673,685.94,685.39,0.536]
[1748520124815,1.0199456,685.95,685.39,0.536]
[1748520125211,1.0199456,685.95,685.4,0.56852757]
[1748520125413,1.31151204,685.95,685.39,0.536]
[1748520125814,1.31151204,685.95,685.4,0.56864398]
[1748520126113,0.29157069,685.94,685.39,0.536]
[1748520126319,0.29157069,685.94,685.4,0.56871852]
[1748520126620,0.29157069,685.94,685.41,0.56872632]
[1748520126818,0.29157069,685.94,685.39,0.536]
[1748520127114,0.29157069,685.94,685.4,0.5687213]
[1748520127418,0.29157069,685.94,685.39,0.536]
[1748520127719,1.02573264,685.93,685.39,0.536]
[1748520127918,0.29157919,685.92,685.39,0.536]
[1748520128215,1.02569168,685.91,685.4,0.56863955]
[1748520128419,0.29157919,685.92,685.41,0.56863752]
[1748520128616,0.29157919,685.92,685.39,0.536]
[1748520128820,1.02569879,685.91,685.39,0.536]
[1748520129015,0.29157919,685.92,685.4,0.56867341]
[1748520129318,0.29157919,685.92,685.39,0.536]
[1748520129915,1.02569379,685.91,685.39,0.536]
[1748520130119,0.29157919,685.92,685.39,0.536]
[1748520130614,1.02607364,685.91,685.39,0.536]
[1748520130817,0.29157919,685.92,685.4,1.13729242]
[1748520131016,1.02607364,685.9,685.41,0.56864621]
[1748520131218,1.02607364,685.9,685.39,0.536]
[1748520131417,1.02607364,685.9,685.4,0.56863383]
[1748520131715,1.02607364,685.9,685.39,0.536]
[1748520132117,1.02606689,685.89,685.39,0.536]
[1748520132315,1.02607364,685.9,685.4,0.56861605]
[1748520132515,1.02607364,685.9,685.39,0.536]
[1748520132715,1.02607364,685.9,685.4,0.56862365]
[1748520132917,1.02607364,685.9,685.39,0.536]
[1748520133118,1.02607364,685.9,685.4,0.56861755]
[1748520133421,1.02607364,685.9,685.39,0.536]
[1748520134022,1.02607364,685.9,685.4,0.56865993]
[1748520134221,1.02607364,685.9,685.39,0.536]
[1748520134418,1.02607661,685.89,685.39,0.536]
[1748520134622,1.02607364,685.9,685.39,0.536]
[1748520134823,1.02607364,685.9,685.4,0.56870446]
[1748520135022,1.02607941,685.89,685.39,0.536]
[1748520135222,1.02607364,685.9,685.39,0.536]
[1748520135919,1.02607585,685.89,685.39,0.536]
[1748520136122,1.02607364,685.9,685.4,0.56869758]
[1748520136423,1.02607443,685.89,685.39,0.536]
[1748520136626,1.02607364,685.9,685.39,0.536]
[1748520136823,1.0260775,685.89,685.39,0.536]
[1748520137023,1.02607364,685.9,685.39,0.536]
[1748520137524,1.02607565,685.89,685.39,0.536]
[1748520137719,1.02607364,685.9,685.39,0.536]
[1748520138221,1.02607364,685.9,685.4,0.56820294]
[1748520138423,1.02607364,685.9,685.39,0.536]
[1748520138623,1.02607337,685.89,685.39,0.536]
[1748520138822,1.02607364,685.9,685.4,0.56824716]
[1748520139023,1.02607364,685.9,685.39,0.536]
[1748520139224,1.02607364,685.9,685.4,0.56824987]
[1748520139428,1.02607363,685.89,685.39,0.536]
[1748520139622,1.02607364,685.9,685.39,0.536]
[1748520140322,1.02608118,685.89,685.39,0.536]
[1748520140521,1.02607364,685.9,685.39,0.536]
[1748520140821,1.0260824,685.89,685.39,0.536]
[1748520141026,1.0260824,685.88,685.39,0.536]
[1748520141226,1.02607364,685.9,685.39,0.536]
[1748520142625,1.02608178,685.89,685.39,0.536]
[1748520142824,1.02608178,685.88,685.4,0.56827679]
[1748520143030,1.02607364,685.9,685.39,0.536]
[1748520143230,1.02607364,685.9,685.4,0.56826526]
[1748520143530,1.02607364,685.9,685.39,0.536]
[1748520143931,1.02605171,685.89,685.39,0.536]
[1748520144133,1.02607364,685.9,685.39,0.536]
[1748520144327,1.02607364,685.9,685.4,0.56823144]
[1748520144532,1.02607364,685.9,685.39,0.536]
[1748520145231,1.02604871,685.89,685.39,0.536]
[1748520145528,1.02607364,685.9,685.39,0.536]
[1748520145930,1.02604864,685.89,685.4,0.56816027]
[1748520146135,1.02604864,685.88,685.41,0.56816027]
[1748520146333,1.02604864,685.88,685.39,0.536]
[1748520146334,1.02604864,685.87,685.42,0.56816027]
[1748520146533,1.02604864,685.86,685.43,0.56816027]
[1748520146733,1.02592071,685.85,685.44,0.56795192]
[1748520146933,1.02607364,685.9,685.39,0.536]
[1748520147239,1.02607364,685.9,685.4,0.56794871]
[1748520147240,1.02591852,685.89,685.4,0.56794871]
[1748520147431,1.02590748,685.88,685.41,0.5679293]
[1748520147631,1.0259023,685.87,685.42,0.56792096]
[1748520147835,1.0259023,685.86,685.39,0.536]
[1748520148034,1.02590479,685.85,685.4,0.56791449]
[1748520148235,1.02590592,685.84,685.41,0.56791676]
[1748520148437,1.02590592,685.84,685.38,0.56727804]
[1748520148438,1.02590592,685.83,685.38,0.56727804]
[1748520148736,1.02607364,685.9,685.38,0.56727804]
[1748520149236,1.02507543,685.89,685.39,0.56746481]
[1748520149537,1.02507543,685.88,685.4,0.56746481]
[1748520149738,1.02607364,685.9,685.38,0.56727804]
[1748520149933,1.02607364,685.9,685.39,0.56744699]
[1748520150234,1.02483567,685.89,685.4,0.56734132]
[1748520150438,1.02483567,685.88,685.41,0.56734132]
[1748520150637,1.02483543,685.87,685.42,0.56734836]
[1748520150937,1.02483254,685.86,685.43,0.56734635]
[1748520151137,1.02483254,685.85,685.44,0.56734635]
[1748520151337,1.02483254,685.84,685.45,0.56734635]
[1748520151540,1.02607364,685.9,685.39,0.493]
[1748520152135,1.0246388,685.89,685.39,0.493]
[1748520152334,1.02607364,685.9,685.39,0.493]
[1748520153040,1.02607364,685.9,685.4,1.13428146]
[1748520153241,1.02607364,685.9,685.4,0.56714073]
[1748520154139,1.02460146,685.89,685.4,0.56714073]
[1748520154339,1.02607364,685.9,685.4,0.56714073]
[1748520154937,1.02607364,685.9,685.41,0.56703259]
[1748520155140,1.02607364,685.9,685.42,0.56703406]
[1748520155341,1.02607364,685.9,685.43,0.5670221]
[1748520155538,1.0245836,685.89,685.44,0.56701947]
[1748520155843,1.02607364,685.9,685.4,0.56714073]
[1748520156238,1.02458503,685.89,685.4,0.56714073]
[1748520156441,1.02607364,685.9,685.4,0.56714073]
[1748520157143,1.02607364,685.9,685.41,0.56694889]
[1748520157342,1.02607364,685.9,685.4,0.56714073]
[1748520157543,1.02607364,685.9,685.41,0.56694692]
[1748520157842,1.02607364,685.9,685.4,0.56714073]
[1748520158239,1.02607364,685.9,685.41,0.56694549]
[1748520158445,1.02607364,685.9,685.42,0.56693678]
[1748520158650,1.02607364,685.9,685.4,0.56714073]
[1748520159147,1.02455031,685.89,685.4,0.56714073]
[1748520159443,1.02455277,685.88,685.41,0.56690372]
[1748520159645,1.02607364,685.9,685.4,0.56714073]
[1748520159646,1.02607364,685.9,685.42,0.56690078]
[1748520159939,1.02607364,685.9,685.4,0.56714073]
[1748520160638,1.02452589,685.89,685.4,0.56714073]
[1748520160841,1.02452377,685.88,685.4,0.56714073]
[1748520161045,1.02607364,685.9,685.4,0.56714073]
[1748520161739,1.02453084,685.89,685.4,0.56714073]
[1748520161944,1.02607364,685.9,685.4,0.56714073]
[1748520162643,1.0245295,685.89,685.4,0.56714073]
[1748520162842,1.02452582,685.88,685.4,0.56714073]
[1748520163042,1.02607364,685.9,685.4,0.56714073]
[1748520163440,1.0245293,685.89,685.4,0.56714073]
[1748520163744,1.02607364,685.9,685.41,0.56686264]
[1748520163944,1.02607364,685.9,685.4,0.56714073]
[1748520164347,1.02452858,685.89,685.4,0.56714073]
[1748520164543,1.02607364,685.9,685.4,0.56714073]
[1748520164848,1.02452669,685.89,685.41,0.56688026]
[1748520165044,1.02607364,685.9,685.4,0.56714073]
[1748520165547,1.02452785,685.89,685.4,0.56714073]
[1748520165744,1.02607364,685.9,685.41,0.56686428]
[1748520165943,1.02607364,685.9,685.4,0.56714073]
[1748520166146,1.02607364,685.9,685.41,0.56687172]
[1748520166343,1.02607364,685.9,685.4,0.56714073]
[1748520166547,1.02452561,685.89,685.41,0.56688288]
[1748520166743,1.02607364,685.9,685.4,0.56714073]
[1748520166943,1.02452282,685.89,685.4,0.56714073]
[1748520167349,1.02452282,685.88,685.4,0.56714073]
[1748520167549,1.02452282,685.89,685.4,0.56714073]
[1748520168548,1.02234179,685.88,685.4,0.56714073]
[1748520168746,1.02452282,685.89,685.4,0.56714073]
[1748520169146,1.02452282,685.89,685.41,0.56557451]
[1748520169450,1.02452282,685.89,685.4,0.56714073]
[1748520170250,1.02452282,685.89,685.41,0.56549809]
[1748520170450,1.02452282,685.89,685.4,0.56714073]
[1748520170746,1.02452282,685.89,685.41,1.26548958]
[1748520170946,1.02452282,685.89,685.41,0.7]
[1748520171351,1.02452282,685.89,685.42,0.56542429]
[1748520171553,1.02201965,685.88,685.43,0.56542428]
[1748520171847,1.02202174,685.87,685.41,0.7]
[1748520172052,1.02452282,685.89,685.41,0.7]
[1748520172353,1.02202452,685.88,685.41,0.7]
[1748520172652,1.02452282,685.89,685.41,0.7]
[1748520172854,1.02207276,685.88,685.41,0.7]
[1748520173153,1.02205601,685.87,685.41,0.7]
[1748520173347,1.02205599,685.86,685.41,0.7]
[1748520173653,1.02452282,685.89,685.41,0.7]
[1748520174248,1.02452282,685.89,685.42,0.56548158]
[1748520174449,1.02452282,685.89,685.41,0.7]
[1748520174855,1.02452282,685.89,685.42,0.56548052]
[1748520175155,1.02452282,685.89,685.41,0.7]
[1748520175655,1.02205634,685.88,685.42,0.5654852]
[1748520175856,1.02205634,685.87,685.43,0.5654852]
[1748520176053,1.02205634,685.86,685.44,0.56552083]
[1748520176256,1.02205634,685.85,685.45,0.56552083]
[1748520176457,1.02141904,685.84,685.46,0.565206]
[1748520176653,1.02141979,685.88,685.41,0.7]
[1748520176858,1.02452282,685.89,685.42,0.56520869]
[1748520177158,1.02452282,685.89,685.41,0.7]
[1748520177754,1.02142005,685.88,685.41,0.7]
[1748520177956,1.02452282,685.89,685.41,0.7]
[1748520178551,1.02154196,685.88,685.41,0.7]
[1748520178754,1.02452282,685.89,685.41,0.7]
[1748520178954,1.02154578,685.88,685.42,0.56528102]
[1748520179250,1.02452282,685.89,685.43,0.56543528]
[1748520179457,1.02164078,685.88,685.41,0.7]
[1748520179658,1.02164233,685.87,685.41,0.7]
[1748520179857,1.02452282,685.89,685.41,0.7]
[1748520180053,1.02165967,685.88,685.41,0.7]
[1748520180354,1.02452282,685.89,685.42,0.56544025]
[1748520180558,1.02452282,685.89,685.41,0.7]
[1748520181157,1.02165965,685.88,685.41,0.7]
[1748520181358,1.02452282,685.89,685.41,0.7]
[1748520182155,1.02163593,685.88,685.42,0.5654746]
[1748520182453,1.02163593,685.88,685.41,0.7]
[1748520182454,1.02452282,685.89,685.41,0.7]
[1748520182657,1.02162685,685.88,685.41,0.7]
[1748520182856,1.02452282,685.89,685.41,0.7]
[1748520183054,1.02452282,685.89,685.42,0.56546572]
[1748520183254,1.02452282,685.89,685.41,0.7]
[1748520183653,1.02162958,685.88,685.41,0.7]
[1748520183856,1.02162958,685.87,685.42,0.5654715]
[1748520184054,1.02162958,685.86,685.43,0.5654715]
[1748520184258,1.02162958,685.85,685.44,0.5654715]
[1748520184456,1.02162995,685.84,685.45,0.5654715]
[1748520184660,1.0216298,685.83,685.46,0.56569922]
[1748520184859,1.02206413,685.82,685.41,0.7]
[1748520185055,1.02206413,685.81,685.42,0.56571404]
[1748520185259,1.02452282,685.89,685.43,0.56575322]
[1748520185260,1.02206702,685.8,685.43,0.56575322]
[1748520185461,1.02452282,685.89,685.44,0.5657651]
[1748520185654,1.02452282,685.89,685.41,0.7]
[1748520186559,1.02209866,685.88,685.42,0.56577061]
[1748520186760,1.02209866,685.88,685.41,0.7]
[1748520186761,1.02452282,685.89,685.41,0.7]
[1748520186956,1.02212965,685.87,685.42,0.56576897]
[1748520187159,1.02452282,685.89,685.41,0.7]
[1748520187361,1.02212946,685.88,685.42,0.56578867]